Workbook

Sheet MSU
B1: Jukka Salmela | E1: 21.2.1980 Espoo
B2: SUPERPPESIS | E2: Runkosarja | I2: Kärkilyönnit (KL), pesänvälit | P2: Ylempi loppusarja | W2: Alempi loppusarja | AD2: Arvo-ottelut | AH2: Mitalit
B3: Vuosi | C3: Sija | D3: Seura | E3: OTT | F3: KUN | G3: LÖI | H3: TOI | I3: KL | J3: 0 > 1 | K3: 1 > 2 | L3: 2 > 3 | M3: 3 > k | N3: KL-% | P3: OTT | Q3: KUN | R3: LÖI | S3: TOI | T3: KL | U3: KL-% | W3: OTT | X3: KUN | Y3: LÖI | Z3: TOI | AA3: KL | AB3: KL-% | AD3: IL | AE3: LL | AF3: hSM | AG3: K | AH3: H | AI3: P
B4: 1999 | C4: 4. | D4: VetU | F4: suomensarja
B5: 2001 | C5: 11. | D5: VePe | F5: ykköspesis
B6: 2002 | C6: 9. | D6: HaVe | F6: ykköspesis
B7: 2003 | C7: 8. | D7: HaVe | F7: ykköspesis
B8: 2004 | C8: 10. | D8: HaVe | F8: ykköspesis
B9: 2005 | C9: 2. | D9: Kiri | F9: ykköspesis | W9: 7 | X9: 0 | Y9: 0 | Z9: 8 | AA9: 30 | AB9: 52.6 %
B10: 2006 | C10: 7. | D10: SiKi | F10: suomensarja
B11: 2006 | C11: 2. | D11: Kiri | F11: ykköspesis | W11: 7 | X11: 0 | Y11: 0 | Z11: 7 | AA11: 19 | AB11: 40.4 %
B12: 2007 | C12: 13. | D12: Kiri | E12: 22 | F12: 2 | G12: 2 | H12: 18 | I12: 72 | J12: 31 | K12: 32 | L12: 5 | M12: 4 | N12: 50.0 % | W12: 5 | X12: 0 | Y12: 0 | Z12: 3 | AA12: 22 | AB12: 66.7 %
B13: 2008 | C13: 2. | D13: LieKi | F13: suomensarja
B14: 2009 | C14: 5. | D14: HaVe | F14: suomensarja
B15: 2009 | C15: 2. | D15: LieKi | F15: suomensarja
B16: 2010 | C16: 1. | D16: LieKi | F16: suomensarja
B17: 2011 | C17: 8. | D17: LieKi | F17: ykköspesis
B18: 2012 | C18: 11. | D18: LieKi | F18: ykköspesis
B19: 2012 | C19: 8. | D19: Kiri | E19: 4 | F19: 0 | G19: 0 | H19: 0 | I19: 6 | J19: 1 | K19: 1 | L19: 4 | M19: 0 | N19: 40.0 %
B20: 2013 | C20: 3. | D20: LieKi | F20: ykköspesis
B21: 2013 | C21: 11. | D21: Kiri | E21: 1 | F21: 0 | G21: 0 | H21: 0 | I21: 2 | J21: 0 | K21: 2 | L21: 0 | M21: 0 | N21: 66.7 %
B22: ****
B23: 2016 | C23: 5. | D23: Kiri 2 | F23: suomensarja
B24: 2016 | C24: 10. | D24: LieKi | F24: ykköspesis
B25: Yhteensä | E25: 27 | F25: 2 | G25: 2 | H25: 18 | I25: 80 | J25: 32 | K25: 35 | L25: 9 | M25: 4 | N25: 49.4 % | P25: =SUM(P18:P24) -> 0 | Q25: =SUM(Q18:Q24) -> 0 | R25: =SUM(R18:R24) -> 0 | S25: =SUM(S18:S24) -> 0 | T25: =SUM(T18:T24) -> 0 | U25: 0.0 % | W25: =PRODUCT(E31) -> 19 | X25: =PRODUCT(F31) -> 0 | Y25: 0 | Z25: 18 | AA25: 71 | AB25: =PRODUCT(N31) -> 51.8 % | AD25: 0 | AE25: 0 | AF25: 0 | AG25: 0 | AH25: 0 | AI25: 0
B26: Pesispörssi | D26: 56.3
B28: URA SUPERISSA | E28: OTT | F28: KUN | G28: LÖI | H28: TOI | I28: KL | K28: ka/L | L28: ka/T | M28: ka/KL | N28: KL-% | P28: ENSIMMÄISET RUNKOSARJASSA
B29: Runkosarja | E29: 27 | F29: 2 | G29: 2 | H29: 18 | I29: 80 | K29: 0.15 | L29: 0.67 | M29: 2.96 | N29: 49.4 % | P29: Ottelu | R29: 15.05. 2007 Kiri - Lippo 2-0 (9-8, 6-4) | Z29: 1. ottelu | AB29: 27 v 2 kk 24 pv
B30: Ylempi loppusarja | P30: Lyöty | R30: 15.05. 2007 Kiri - Lippo 2-0 (9-8, 6-4) | Z30: 1. ottelu | AB30: 27 v 2 kk 24 pv
B31: Alempi loppusarja | E31: 19 | F31: 0 | G31: 0 | H31: 18 | I31: 71 | K31: 0.00 | L31: 0.95 | M31: 3.74 | N31: 51.8 % | P31: Tuotu | R31: 15.05. 2007 Kiri - Lippo 2-0 (9-8, 6-4) | Z31: 1. ottelu | AB31: 27 v 2 kk 24 pv
B32: KAIKKI | E32: 46 | F32: 2 | G32: 2 | H32: 36 | I32: 151 | K32: 0.09 | L32: 0.78 | M32: 3.28 | N32: 50.5 % | P32: Kunnari | R32: 15.05. 2007 Kiri - Lippo 2-0 (9-8, 6-4) | Z32: 1. ottelu | AB32: 27 v 2 kk 24 pv
B34: Seurat | D34: HalTo = Halsuan Toivo (1909), kasvattajaseura | L34: VePe = Veteli Pesis (2000) | S34: Kiri = Jyväskylän Kiri (1930) | Z34: SiKi = Simon Kiri (1926)
D35: VetU = Vetelin Urheilijat (1947) | L35: HaVe = Halsua-Veteli Pesis (2002) | S35: LieKi = Lievestuoreen Kisa (1927)

Sheet MYP, MSS
B1: Jukka Salmela | E1: 21.2.1980 Espoo
B2: YKKÖSPESIS | E2: Runkosarja | L2: Runkosarja TOP-10 | Q2: Jatkosarjat | X2: SUOMENSARJA | AA2: Runkosarja | AH2: Runkosarja TOP-10 | AM2: Jatkosarjat
B3: Vuosi | C3: Sija | D3: Seura | E3: OTT | F3: KUN | G3: LÖI | H3: TOI | I3: KL | J3: KL-% | L3: LÖI | M3: TOI | N3: L+T | O3: KL | Q3: OTT | R3: KUN | S3: LÖI | T3: TOI | U3: KL | V3: KL-% | X3: Vuosi | Y3: Sija | Z3: Seura | AA3: OTT | AB3: KUN | AC3: LÖI | AD3: TOI | AE3: KL | AF3: KL-% | AH3: LÖI | AI3: TOI | AJ3: L+T | AK3: KL | AM3: OTT | AN3: KUN | AO3: LÖI | AP3: TOI | AQ3: KL | AR3: KL-%
X4: 1999 | Y4: 4. | Z4: VetU
B6: 2001 | C6: 11. | D6: VePe | E6: 26 | F6: 0 | G6: 1 | H6: 22 | I6: 106 | J6: 59.2 % | K6: 179
B7: 2002 | C7: 9. | D7: HaVe | E7: 22 | F7: 2 | G7: 8 | H7: 25 | I7: 106 | J7: 67.5 % | K7: 157
B8: 2003 | C8: 8. | D8: HaVe | E8: 21 | F8: 1 | G8: 8 | H8: 17 | I8: 69 | J8: 54.8 % | K8: 126
B9: 2004 | C9: 10. | D9: HaVe | E9: 22 | F9: 1 | G9: 4 | H9: 37 | I9: 120 | J9: 72.7 % | K9: 165 | M9: 3. | O9: 6.
B10: 2005 | C10: 2. | D10: Kiri | E10: 22 | F10: 2 | G10: 11 | H10: 46 | I10: 129 | J10: 70.5 % | K10: 183 | M10: 3. | N10: 8. | O10: 3.
B11: 2006 | C11: 2. | D11: Kiri | E11: 12 | F11: 2 | G11: 7 | H11: 15 | I11: 46 | J11: 63.9 % | K11: 72 | X11: 2006 | Y11: 7. | Z11: SiKi | AA11: 1 | AB11: 0 | AC11: 1 | AD11: 0 | AE11: 4 | AF11: 80.0 % | AG11: 5
X13: 2008 | Y13: 2. | Z13: LieKi | AA13: 12 | AB13: 1 | AC13: 6 | AD13: 15 | AE13: 56 | AF13: 69.1 % | AG13: 81 | AM13: 4 | AN13: 1 | AO13: 3 | AP13: 3 | AQ13: 18 | AR13: 58.1 % | AS13: 31
X14: 2009 | Y14: 2. | Z14: LieKi | AA14: 12 | AB14: 2 | AC14: 8 | AD14: 11 | AE14: 46 | AF14: 64.8 % | AG14: 71 | AM14: 4 | AN14: 0 | AO14: 0 | AP14: 0 | AQ14: 10 | AR14: 40.0 % | AS14: 25
X15: 2009 | Y15: 5. | Z15: HaVe | AA15: 1 | AB15: 0 | AC15: 0 | AD15: 1 | AE15: 4 | AF15: 50.0 % | AG15: 8
X16: 2010 | Y16: 1. | Z16: LieKi | AA16: 14 | AB16: 0 | AC16: 6 | AD16: 26 | AE16: 72 | AF16: 80.9 % | AG16: 89 | AI16: 8. | AM16: 6 | AN16: 0 | AO16: 2 | AP16: 8 | AQ16: 23 | AR16: 67.6 % | AS16: 34
B17: 2011 | C17: 8. | D17: LieKi | E17: 8 | F17: 2 | G17: 6 | H17: 10 | I17: 44 | J17: 71.0 % | K17: 62
B18: 2012 | C18: 11. | D18: LieKi | E18: 20 | F18: 0 | G18: 4 | H18: 6 | I18: 74 | J18: 64.3 % | K18: 115 | Q18: 2 | R18: 0 | S18: 0 | T18: 0 | U18: 14
X19: 2013 | Y19: 3. | Z19: LieKi | AA19: 2 | AB19: 0 | AC19: 0 | AD19: 0 | AE19: 6 | AF19: 46.2 % | AG19: 13 | AM19: 3 | AN19: 0 | AO19: 1 | AP19: 1 | AQ19: 11 | AR19: 73.3 % | AS19: 15
B21: 2016 | C21: 10. | D21: LieKi | E21: 2 | F21: 0 | G21: 0 | H21: 0 | I21: 7 | J21: 46.7 % | K21: 15 | X21: 2016 | Y21: 5. | Z21: Kiri 2 | AA21: 1 | AB21: 0 | AC21: 0 | AD21: 0 | AE21: 4 | AF21: 50.0 % | AG21: 8
B22: YHTEENSÄ | E22: =SUM(E4:E21) -> 155 | F22: =SUM(F4:F21) -> 10 | G22: =SUM(G4:G21) -> 49 | H22: =SUM(H4:H21) -> 178 | I22: =SUM(I4:I21) -> 701 | J22: =PRODUCT(I22/K22) -> 65.3 % | K22: =SUM(K4:K21) -> 1074 | Q22: =SUM(Q4:Q21) -> 2 | R22: =SUM(R4:R21) -> 0 | S22: =SUM(S4:S21) -> 0 | T22: =SUM(T4:T21) -> 0 | U22: =SUM(U4:U21) -> 14 | V22: =PRODUCT(U22/W22) ->  | W22: =SUM(W4:W21) -> 0 | X22: YHTEENSÄ | AA22: =SUM(AA4:AA21) -> 43 | AB22: =SUM(AB4:AB21) -> 3 | AC22: =SUM(AC4:AC21) -> 21 | AD22: =SUM(AD4:AD21) -> 53 | AE22: =SUM(AE4:AE21) -> 192 | AF22: =PRODUCT(AE22/AG22) -> 69.8 % | AG22: =SUM(AG4:AG21) -> 275 | AM22: =SUM(AM4:AM21) -> 17 | AN22: =SUM(AN4:AN21) -> 1 | AO22: =SUM(AO4:AO21) -> 6 | AP22: =SUM(AP4:AP21) -> 12 | AQ22: =SUM(AQ4:AQ21) -> 62 | AR22: =PRODUCT(AQ22/AS22) -> 59.0 % | AS22: =SUM(AS4:AS21) -> 105
B24: KAIKKI OTTELUT | E24: OTT | F24: KUN | G24: LÖI | H24: TOI | I24: KL | J24: KL-% | L24: ka/L | M24: ka/T | N24: ka/l+t | O24: ka/kl | R24: Seurat | T24: HalTo = Halsuan Toivo (1909), kasvattajaseura
B25: SUPERPESIS | E25: 46 | F25: 2 | G25: 2 | H25: 36 | I25: 151 | J25: 50.5 % | K25: =PRODUCT(I25/J25) -> 299.009901 | L25: =PRODUCT((F25+G25)/E25) -> 0.09 | M25: =PRODUCT(H25/E25) -> 0.78 | N25: =PRODUCT((F25+G25+H25)/E25) -> 0.87 | O25: =PRODUCT(I25/E25) -> 3.28 | T25: VetU = Vetelin Urheilijat (1947)
B26: YKKÖSPESIS | E26: =PRODUCT(E22+Q22) -> 157 | F26: =PRODUCT(F22+R22) -> 10 | G26: =PRODUCT(G22+S22) -> 49 | H26: =PRODUCT(H22+T22) -> 178 | I26: =PRODUCT(I22+U22) -> 715 | J26: =PRODUCT(I26/K26) -> 66.6 % | K26: =PRODUCT(K22+W22) -> 1074 | L26: =PRODUCT((F26+G26)/E26) -> 0.38 | M26: =PRODUCT(H26/E26) -> 1.13 | N26: =PRODUCT((F26+G26+H26)/E26) -> 1.51 | O26: =PRODUCT(I26/E26) -> 4.55 | T26: VePe = Veteli Pesis (2000)
B27: SUOMENSARJA | E27: =PRODUCT(AA22+AM22) -> 60 | F27: =PRODUCT(AB22+AN22) -> 4 | G27: =PRODUCT(AC22+AO22) -> 27 | H27: =PRODUCT(AD22+AP22) -> 65 | I27: =PRODUCT(AE22+AQ22) -> 254 | J27: =PRODUCT(I27/K27) -> 66.8 % | K27: =PRODUCT(AG22+AS22) -> 380 | L27: =PRODUCT((F27+G27)/E27) -> 0.52 | M27: =PRODUCT(H27/E27) -> 1.08 | N27: =PRODUCT((F27+G27+H27)/E27) -> 1.60 | O27: =PRODUCT(I27/E27) -> 4.23 | T27: HaVe = Halsua-Veteli Pesis (2002)
B28: YHTEENSÄ | E28: =SUM(E25:E27) -> 263 | F28: =SUM(F25:F27) -> 16 | G28: 78 | H28: 279 | I28: 1120 | J28: =PRODUCT(I28/K28) -> 63.9 % | K28: =SUM(K25:K27) -> 1753.009901 | L28: =PRODUCT((F28+G28)/E28) -> 0.36 | M28: =PRODUCT(H28/E28) -> 1.06 | N28: =PRODUCT((F28+G28+H28)/E28) -> 1.42 | O28: =PRODUCT(I28/E28) -> 4.26 | T28: Kiri = Jyväskylän Kiri (1930)
T29: SiKi = Simon Kiri (1926)
T30: LieKi = Lievestuoreen Kisa (1927)
